bitfinex-derivatives/quotes_ETHF0:USTF0_20250927
["timestamp","ask_amount","ask_price","bid_price","bid_amount"]
[1758990383424,0.53837174,4015.6,4015.5,1.34271]
[1758990388218,0.07148582,4015.6,4015.5,1.34271]
[1758990388621,0.07148582,4015.6,4015.5,2.77879772]
[1758990390228,0.07148582,4015.6,4015.5,5.98659772]
[1758990391528,0.44793,4016.2,4016.1,0.88054]
[1758990391723,0.44793,4016.2,4016.1,1.19904]
[1758990392228,0.251,4016.3,4016.2,1.19903]
[1758990392426,0.69892,4016.3,4016.2,1.19903]
[1758990392629,0.251,4016.3,4016.2,1.19903]
[1758990392828,0.69892,4016.3,4016.2,1.19903]
[1758990394729,3.2078,4016.5,4016.4,1.19901]
[1758990400233,3.74250129,4016.5,4016.4,1.19901]
[1758990400432,4.19040129,4016.5,4016.4,1.19901]
[1758990404137,4.19040129,4016.5,4016.4,0.7511]
[1758990404434,4.44140129,4016.5,4016.4,0.5441]
[1758990406035,4.44140129,4016.5,4016.4,0.7511]
[1758990406926,4.19040129,4016.5,4016.4,0.7511]
[1758990407127,4.44140129,4016.5,4016.4,0.7511]
[1758990409636,4.44140129,4016.5,4016.4,1.19901]
[1758990409836,4.44140129,4016.5,4016.4,0.7511]
[1758990410836,3.74250129,4016.5,4016.4,1.19901]
[1758990412033,4.19040129,4016.5,4016.4,1.19901]
[1758990412528,4.19040129,4016.5,4016.4,0.7511]
[1758990419143,4.19040129,4016.5,4016.4,0.3185]
[1758990420041,5.87748901,4016.5,4016.4,0.3185]
[1758990420342,0.44794,4016.1,4016.0,0.1281]
[1758990420542,1.23364129,4016.1,4016.0,0.1281]
[1758990420744,1.23364129,4016.1,4016.0,0.4569]
[1758990421131,0.98264129,4016.1,4016.0,0.6706]
[1758990421332,1.23364129,4016.1,4016.0,0.6706]
[1758990432863,1.23364129,4016.1,4016.0,0.8831]
[1758990433362,1.23364129,4016.1,4016.0,0.4569]
[1758990434060,1.23364129,4016.1,4016.0,0.6819]
[1758990435363,0.78570129,4016.1,4016.0,0.8944]
[1758990436562,0.78570129,4016.1,4016.0,1.34235]
[1758990441159,0.78570129,4016.1,4016.0,0.8944]
[1758990441364,1.23362129,4016.1,4016.0,0.8944]
[1758990441565,0.78570129,4016.1,4016.0,1.34232]
[1758990443264,0.53470129,4016.1,4016.0,1.34232]
[1758990443566,0.251,4016.3,4016.2,0.7629]
[1758990443863,0.78524368,4016.3,4016.2,1.21081]
[1758990446565,0.53424368,4016.3,4016.2,1.21081]
[1758990459073,3.2078,4016.5,4016.4,0.44789]
[1758990459373,3.74203353,4016.5,4016.4,1.21079]
[1758990472684,4.18991353,4016.5,4016.4,1.21079]
[1758990473279,3.74203353,4016.5,4016.4,1.21079]
[1758990473486,4.18991353,4016.5,4016.4,1.21079]
[1758990474382,3.74203353,4016.5,4016.4,1.21079]
[1758990475689,0.53423353,4016.5,4016.4,1.21079]
[1758990480793,0.98211353,4016.5,4016.4,1.21079]
[1758990481096,0.98211353,4016.5,4016.4,0.7629]
[1758990481286,0.98211353,4016.5,4016.4,1.21079]
[1758990484292,0.53423353,4016.5,4016.4,1.21079]
[1758990485196,0.98211353,4016.5,4016.4,1.21079]
[1758990485397,0.98211353,4016.5,4016.4,0.7629]
[1758990485594,0.98211353,4016.5,4016.4,0.316]
[1758990492703,0.44793,4016.1,4016.0,0.1281]
[1758990492997,0.69893,4016.1,4016.0,0.5479]
[1758990493202,1.23316353,4016.1,4016.0,0.5479]
[1758990493406,1.23316353,4016.1,4016.0,0.8587]
[1758990495594,1.23316353,4016.1,4016.0,1.30664]
[1758990496590,0.98216353,4016.1,4016.0,1.30664]
[1758990499597,0.98216353,4016.1,4016.0,0.8587]
[1758990500297,0.98216353,4016.1,4016.0,1.30665]
[1758990501307,0.53423353,4016.1,4016.0,1.30665]
[1758990504408,0.98216353,4016.1,4016.0,1.30665]
[1758990505006,0.53423353,4016.1,4016.0,1.30665]
[1758990507612,0.53423353,4016.1,4016.0,1.09285]
[1758990508517,0.98216353,4016.1,4016.0,1.09284]
[1758990508811,0.53423353,4016.1,4016.0,1.09284]
[1758990512110,0.53423353,4016.1,4016.0,1.31034]
[1758990519022,0.98217353,4016.1,4016.0,0.6449]
[1758990519221,0.98217353,4016.1,4016.0,0.4389]
[1758990520508,5.98217353,4016.1,4016.0,0.4389]
[1758990520819,6.23317353,4016.1,4016.0,0.4389]
[1758990521018,16.08317353,4016.1,4016.0,0.4389]
[1758990521322,16.08317353,4016.1,4015.5,0.4413]
[1758990521323,0.44799,4015.6,4015.5,0.4413]
[1758990521523,5.87741086,4015.6,4015.5,0.6585]
[1758990522224,5.87741086,4015.6,4015.5,1.1065]
[1758990522427,5.42942086,4015.6,4015.5,1.324]
[1758990526235,5.87741086,4015.6,4015.5,0.876]
[1758990526426,5.87741086,4015.6,4015.5,0.4413]
[1758990526735,5.87741086,4015.6,4015.5,0.6585]
[1758990528226,5.87725445,4015.6,4015.5,0.6585]
[1758990535337,5.87725445,4015.6,4015.5,1.1065]
[1758990535537,5.87725445,4015.6,4015.5,0.6585]
[1758990538238,5.87725445,4015.6,4015.5,0.4413]
[1758990540844,17.29854102,4015.6,4015.5,0.4413]
[1758990546444,0.4481,4014.6,4014.5,0.2246]
[1758990546639,6.06268733,4014.6,4014.5,0.5566]
[1758990546839,6.59676445,4014.6,4014.5,0.5566]
[1758990547438,6.59676445,4014.6,4014.5,0.00196821]
[1758990547843,15.14676445,4014.6,4014.5,0.00196821]
[1758990548145,15.14676445,4014.6,4014.0,0.3493]
[1758990548146,0.87076,4014.1,4014.0,0.3493]
[1758990548340,6.59702445,4014.1,4014.0,0.3493]
[1758990548540,6.59702445,4014.1,4014.0,0.6732]
[1758990548938,6.59702445,4014.1,4013.5,0.8904]
[1758990548939,0.86621,4013.6,4013.5,0.8904]
[1758990549147,6.59487756,4013.6,4013.5,0.8935911]
[1758990550343,5.84966756,4013.6,4013.5,0.8935911]
[1758990551847,5.64296756,4013.6,4013.5,0.8935911]
[1758990553640,3.74428023,4013.6,4013.5,5.8935911]
[1758990553845,2.86950311,4013.6,4013.5,5.8935911]
[1758990554155,0.00240311,4013.6,4013.5,5.8935911]
[1758990561153,0.00240311,4013.6,4013.5,6.3418211]
[1758990561650,0.00240311,4013.6,4013.5,6.5928211]
[1758990564053,0.00240311,4013.6,4013.5,6.3418211]
[1758990564252,0.00240311,4013.6,4013.5,6.5928211]
[1758990567654,0.53810255,4013.6,4013.5,6.5928211]
[1758990569358,0.53810255,4013.6,4013.5,6.3418211]
[1758990569556,0.53810255,4013.6,4013.5,6.5928211]
[1758990571254,0.75750255,4013.6,4013.5,1.5928211]
[1758990571760,1.08870255,4013.6,4013.5,1.5928211]
[1758990572057,0.75750255,4013.6,4013.5,1.5928211]
[1758990572458,0.53810255,4013.6,4013.5,1.5928211]
[1758990577255,1.08870255,4013.6,4013.5,1.4562211]
[1758990577461,1.08870255,4013.6,4013.5,1.5843211]
[1758990577855,0.75750255,4013.6,4013.5,1.5843211]
[1758990578154,0.53810255,4013.6,4013.5,1.5843211]
[1758990579468,0.75750255,4013.6,4013.5,1.5843211]
[1758990580158,1.08870255,4013.6,4013.5,1.5843211]
[1758990584870,0.53810255,4013.6,4013.5,1.5843211]
[1758990585862,1.08870255,4013.6,4013.5,1.5843211]
[1758990587270,1.53692255,4013.6,4013.5,1.5843211]
[1758990587571,1.74822255,4013.6,4013.5,1.0079911]
[1758990587869,1.74822255,4013.6,4013.5,1.4562211]
[1758990588072,1.74822255,4013.6,4013.5,1.2052211]
[1758990588774,1.74822255,4013.6,4013.5,0.7569911]
[1758990589169,1.74822255,4013.6,4013.5,0.0031911]
[1758990589370,6.74822255,4013.6,4013.5,0.0031911]
[1758990590666,6.99922255,4013.6,4013.5,0.0031911]
[1758990596875,6.46352311,4013.6,4013.5,0.0031911]
[1758990597074,7.00023496,4013.6,4013.5,0.0031911]
[1758990600473,10.99023496,4013.6,4013.5,0.0031911]
[1758990601575,7.00023496,4013.6,4013.5,0.0031911]
[1758990601774,8.79192347,4013.6,4013.5,0.0031911]
[1758990602276,3.79192347,4013.6,4013.5,0.0031911]
[1758990605874,1.30101496,4013.6,4013.5,0.7528911]
[1758990606074,0.75851496,4013.6,4013.5,1.3308211]
[1758990606379,0.53911496,4013.6,4013.5,5.8825911]
[1758990606580,0.76321496,4013.6,4013.5,5.8825911]
[1758990606880,1.07741496,4013.6,4013.5,5.8825911]
[1758990607574,0.76321496,4013.6,4013.5,5.8825911]
[1758990607781,0.53911496,4013.6,4013.5,5.8825911]
[1758990610684,1.08971496,4013.6,4013.5,5.8825911]
[1758990611282,1.54781496,4013.6,4013.5,0.0031911]
[1758990614083,1.54781496,4013.6,4013.5,0.3264911]
[1758990614287,1.54781496,4013.6,4013.5,0.0031911]
[1758990615181,1.54781496,4013.6,4013.5,0.5332911]
[1758990616887,1.99603496,4013.6,4013.5,0.0031911]
[1758990617281,1.99603496,4013.6,4013.5,0.4514211]
[1758990617687,1.99603496,4013.6,4013.5,0.9815211]
[1758990619190,1.54781496,4013.6,4013.5,0.9815211]
[1758990621283,1.54781496,4013.6,4013.5,1.1981211]
[1758990621490,1.54681496,4013.6,4013.5,1.1981211]
[1758990621879,1.99503496,4013.6,4013.5,1.1981211]
[1758990622184,1.54681496,4013.6,4013.5,1.1981211]
[1758990622790,1.99503496,4013.6,4013.5,1.1981211]
[1758990624290,1.54681496,4013.6,4013.5,1.1981211]
[1758990624994,1.99503496,4013.6,4013.5,0.0031911]
[1758990626083,3.78672347,4013.6,4013.5,0.0031911]
[1758990631503,0.1321,4013.0,4011.9,3.24972744]
[1758990631795,0.2214,4012.2,4012.1,1.20168]
[1758990632004,3.4292,4012.2,4012.1,1.20168]
[1758990632196,4.27651185,4012.2,4012.1,1.20168]
[1758990632591,4.27651185,4012.2,4012.1,1.20398399]
[1758990633305,4.75101185,4012.2,4012.1,0.53780399]
[1758990633498,4.75101185,4012.2,4012.1,0.00230399]
[1758990633800,4.75030288,4012.2,4012.1,0.00230399]
[1758990635095,4.75030288,4012.2,4008.9,247.29336095]
[1758990635096,0.7565,4011.2,4011.1,0.984]
[1758990635294,0.7565,4011.2,4011.1,1.2018]
[1758990635899,1.29169725,4011.2,4011.1,0.5355]
[1758990636201,1.29169725,4011.2,4011.1,0.53764478]
[1758990637192,0.7565,4011.2,4011.1,0.53764478]
[1758990637697,0.7565,4011.2,4011.1,0.75544478]
[1758990638200,3.5184,4011.6,4011.1,1.87666478]
[1758990638401,3.2078,4011.6,4011.5,1.32975]
[1758990638596,3.74186935,4011.6,4011.5,1.32975]
[1758990638797,3.2078,4011.6,4011.5,6.32975]
[1758990639406,3.2078,4011.6,4011.5,1.32975]
[1758990640601,0.782,4011.8,4011.7,0.44843]
[1758990640803,0.782,4011.8,4011.7,1.20173]
[1758990641400,0.25,4011.8,4011.7,1.20173]
[1758990641602,3.7398,4012.1,4012.0,1.32969]
[1758990641802,4.74820782,4012.1,4012.0,1.32969]
[1758990642003,4.74820782,4012.1,4012.0,1.20169]
[1758990643403,4.49820782,4012.1,4012.0,1.32969]
[1758990643610,3.2078,4012.1,4012.0,1.32969]
[1758990645911,0.782,4012.4,4012.3,0.87166]
[1758990646209,0.782,4012.4,4012.3,1.20166]
[1758990647310,1.54065342,4012.4,4012.3,1.20166]
[1758990647714,1.29065342,4012.4,4012.3,1.20166]
[1758990649408,0.75555342,4012.4,4012.3,1.20166]
[1758990651913,1.29065342,4012.4,4012.3,1.20166]
[1758990652806,1.29065342,4012.4,4012.3,0.7533]
[1758990654112,1.29065342,4012.4,4012.3,1.20166]
[1758990655918,1.29065342,4012.4,4012.3,0.98386]
[1758990657120,1.29065342,4012.4,4012.3,1.19936]
[1758990657518,0.75555342,4012.4,4012.3,1.19936]
[1758990658120,1.06845342,4012.4,4012.3,1.19936]
[1758990658622,1.28925342,4012.4,4012.3,1.19936]
[1758990660415,1.28925342,4012.4,4012.3,0.751]
[1758990660811,1.28925342,4012.4,4012.3,1.19936]
[1758990661211,1.73760342,4012.4,4012.3,0.751]
[1758990661723,1.28925342,4012.4,4012.3,0.751]
[1758990661919,1.28925342,4012.4,4012.3,1.19936]
[1758990663313,1.73760342,4012.4,4012.3,0.751]
[1758990664325,1.20513,4011.7,4011.6,0.5432]
[1758990664621,1.20513,4011.7,4011.6,0.7932]
[1758990664819,1.20513,4011.7,4011.6,1.24164]
[1758990665014,1.20513,4011.7,4011.6,1.45714]
[1758990665224,1.20513,4011.7,4011.6,1.0087]
[1758990665523,1.20513,4011.7,4011.6,1.45714]
[1758990666225,1.2927578,4011.7,4011.6,1.45714]
[1758990666814,1.7411878,4011.7,4011.6,1.45714]
[1758990667023,1.2927578,4011.7,4011.6,1.45714]
[1758990668027,0.9798578,4011.7,4011.2,0.3376]
[1758990668229,0.9798578,4011.7,4011.1,0.00214478]
[1758990668230,0.7567,4011.2,4011.1,0.79534478]
[1758990668427,1.2927578,4011.2,4011.1,0.79534478]
[1758990668623,1.2927578,4011.2,4011.1,1.01084478]
[1758990673435,1.2927578,4011.2,4011.1,1.45934478]
[1758990675435,0.7567,4011.2,4011.1,1.45934478]
[1758990676041,0.7567,4011.2,4011.1,2.89919752]
[1758990677033,1.2931156,4011.2,4011.1,2.89919752]
[1758990677233,0.7567,4011.2,4011.1,2.89919752]
[1758990681737,0.7567,4011.2,4011.1,1.45934478]
[1758990682440,0.7567,4011.2,4011.1,1.20934478]
[1758990682641,0.7567,4011.2,4011.1,1.45934478]
[1758990684541,0.5608,4011.6,4011.5,1.33035]
[1758990684742,1.31524086,4011.6,4011.5,1.33035]
[1758990685142,1.31524086,4011.6,4011.5,1.20765]
[1758990685345,1.76368086,4011.6,4011.5,1.20765]
[1758990685538,1.76368086,4011.6,4011.5,0.7592]
[1758990685735,1.76368086,4011.6,4011.5,1.20765]
[1758990686441,1.76368086,4011.6,4011.3,0.4606]
[1758990686442,0.88726,4011.4,4011.3,0.4606]
[1758990686638,1.76370086,4011.4,4011.3,0.7922]
[1758990686838,1.76370086,4011.4,4011.3,0.4606]
[1758990687133,1.76370086,4011.4,4011.3,0.7922]
[1758990687645,1.76370086,4011.4,4011.1,0.00214478]
[1758990687646,1.31524086,4011.4,4011.1,0.00214478]
[1758990687840,2.66723274,4011.2,4011.1,0.00214478]
[1758990688142,3.2035736,4011.2,4011.1,0.00214478]
[1758990693249,8.2035736,4011.2,4011.1,0.00214478]
[1758990694844,8.4535736,4011.2,4011.1,0.00214478]
[1758990696249,1.22751,4010.1,4010.0,0.7592]
[1758990696451,1.22751,4010.1,4009.9,3.5394]
[1758990696452,1.35762,4010.0,4009.9,3.5394]
[1758990696650,1.89396086,4010.0,4009.9,3.75]
[1758990696951,1.89396086,4010.0,4009.9,4.19863]
[1758990697247,1.31704635,4010.0,4009.9,1.21046553]
[1758990698043,1.31704635,4010.0,4009.9,0.76183553]
[1758990698553,1.44714635,4010.0,4009.9,0.54483553]
[1758990699247,1.44714635,4010.0,4009.9,0.21323553]
[1758990699953,1.44714635,4010.0,4009.9,0.00263553]
[1758990700346,4.65494635,4010.0,4009.9,0.00263553]
[1758990700957,4.65494635,4010.0,4009.9,0.54483553]
[1758990701152,4.90494635,4010.0,4009.9,0.54483553]
[1758990701354,4.52484635,4010.0,4009.9,0.76183553]
[1758990701653,4.77484635,4010.0,4009.9,0.76183553]
[1758990703154,4.90494635,4010.0,4009.9,0.00263553]
[1758990703352,4.90494635,4010.0,4009.9,0.54483553]
[1758990703547,4.77484635,4010.0,4009.9,0.76183553]
[1758990705149,4.90494635,4010.0,4009.9,0.76183553]
[1758990706352,5.35356635,4010.0,4009.9,0.00263553]
[1758990707248,3.74594635,4010.0,4009.9,1.21046553]
[1758990707450,3.20960549,4010.0,4009.9,3.00591381]
[1758990707851,3.20960549,4010.0,4009.9,8.00591381]
[1758990710853,3.77040549,4010.0,4009.9,1.21046553]
[1758990711758,0.56260549,4010.0,4009.9,1.21046553]
[1758990713059,0.22250549,4010.0,4009.9,1.21046553]
[1758990714362,0.00180549,4010.0,4009.9,1.21046553]
[1758990716062,0.53890549,4010.0,4009.9,1.21736553]
[1758990716359,0.75310549,4010.0,4009.9,1.21736553]
[1758990716661,0.88460549,4010.0,4009.9,1.21736553]
[1758990718061,1.86898465,4010.0,4009.9,0.00263553]
[1758990719467,0.00180549,4010.0,4009.9,3.25901381]
[1758990722165,0.00180549,4010.0,4009.9,1.46356553]
[1758990722359,0.00180549,4010.0,4009.9,3.25901381]
[1758990722567,0.00180549,4010.0,4009.9,8.25901381]
[1758990722765,0.5371,4010.9,4010.8,0.4437]
[1758990722964,1.07326927,4010.9,4010.8,1.21083]
[1758990723565,0.53616927,4010.9,4010.8,3.00627828]
[1758990723766,0.5384957,4010.9,4010.8,3.25627828]
[1758990725772,0.00232643,4010.9,4010.8,3.25627828]
[1758990727376,0.53942643,4010.9,4010.8,1.46083]
[1758990727771,0.22032643,4010.9,4010.8,1.46083]
[1758990728078,0.53942643,4010.9,4010.8,1.46083]
[1758990729674,0.22032643,4010.9,4010.8,1.46083]
[1758990729975,0.00232643,4010.9,4010.8,1.46083]
[1758990731078,0.74252643,4010.9,4010.8,1.46083]
[1758990732874,0.74252643,4010.9,4010.8,1.21083]
[1758990733176,1.27783442,4010.9,4010.8,0.69853]
[1758990734274,0.2093,4010.4,4010.3,3.5347]
[1758990734579,1.27541466,4010.4,4010.3,3.2078]
[1758990737278,1.27541466,4010.4,4010.3,3.7604]
[1758990737979,1.27541466,4010.4,4010.3,3.9769]
[1758990743185,1.27541466,4010.4,4010.3,3.9695]
[1758990745478,1.27541466,4010.4,4010.3,4.41809]
[1758990749581,1.72398466,4010.4,4010.3,4.41809]
[1758990749889,1.72398466,4010.4,4010.3,3.9695]
[1758990751186,1.72398466,4010.4,4010.3,4.41809]
[1758990751589,1.27541466,4010.4,4010.3,4.41809]
[1758990751988,1.72398466,4010.4,4010.3,3.65639]
[1758990752289,1.72398466,4010.4,4010.3,4.19319]
[1758990752488,1.72398466,4010.4,4010.3,4.40179]
[1758990754192,1.72398466,4010.4,4010.3,1.19399]
[1758990754782,1.27541466,4010.4,4010.3,1.19399]
[1758990760096,0.53521466,4010.4,4010.3,1.19399]
[1758990766996,0.53521466,4010.4,4010.3,2.63418794]
[1758990769401,1.27741466,4010.4,4010.3,1.44399]
[1758990774807,0.53521466,4010.4,4010.3,1.44399]
[1758990775507,0.74081466,4010.4,4010.3,1.44399]
[1758990777506,1.05571466,4010.4,4010.3,1.44399]
[1758990778914,1.26221466,4010.4,4010.3,0.97159]
[1758990779109,1.26221466,4010.4,4010.3,1.22159]
[1758990779309,1.26221466,4010.4,4010.3,1.44789]
[1758990780011,0.74081466,4010.4,4010.3,1.44789]
[1758990781208,1.26221466,4010.4,4010.3,1.44789]
[1758990785714,1.26221466,4010.4,4010.3,1.22159]
[1758990786111,1.26221466,4010.4,4010.3,1.23999]
[1758990786703,1.71078466,4010.4,4010.2,3.2078]
[1758990786908,2.16719794,4010.4,4010.3,0.44858]
[1758990787108,2.70446846,4010.4,4010.3,0.44858]
[1758990787509,1.26427052,4010.4,4010.3,0.44858]
[1758990788516,1.26427052,4010.4,4010.3,0.76378]
[1758990789212,1.26427052,4010.4,4010.3,0.44858]
[1758990789611,1.26427052,4010.4,4010.0,0.44862]
[1758990789612,0.44861,4010.1,4010.0,0.44862]
[1758990789815,2.63640794,4010.1,4010.0,0.44862]
[1758990790014,2.72506846,4010.1,4010.0,0.44862]
[1758990790317,1.28487052,4010.1,4010.0,0.97492]
[1758990791314,1.28487052,4010.1,4010.0,1.31892]
[1758990791522,0.53727052,4010.1,4010.0,3.00911794]
[1758990797221,1.28487052,4010.1,4010.0,1.56892]
[1758990797723,1.28487052,4010.1,4010.0,1.44412]
[1758990798123,0.1261,4010.0,4009.9,0.00263553]
[1758990798320,1.85959052,4010.0,4009.9,0.00263553]
[1758990798919,3.29978846,4010.0,4009.9,0.00263553]
[1758990800623,0.4328,4009.1,4008.7,3.2078]
[1758990800934,0.4328,4009.1,4009.0,0.65983]
[1758990801224,0.7476,4009.1,4009.0,1.22503]
[1758990801430,1.28461233,4009.1,4009.0,1.44423]
[1758990801627,1.28461233,4009.1,4009.0,1.44613332]
[1758990801822,0.96981233,4009.1,4009.0,1.57093332]
[1758990802018,0.5263,4009.3,4009.2,0.87901]
[1758990802224,0.53674274,4009.5,4009.4,1.19419]
[1758990802432,0.7476,4009.9,4009.8,0.7455]
[1758990802732,1.28422074,4009.9,4009.8,1.19414]
[1758990809133,0.74812074,4009.9,4009.8,2.63433794]
[1758990809934,0.51433847,4009.9,4009.8,2.63433794]
[1758990810139,0.2138,4010.0,4009.9,1.23123]
[1758990810927,3.2078,4010.1,4010.0,1.14372]
[1758990811133,0.3293,4010.5,4010.4,1.23117]
[1758990811134,0.7554,4010.5,4010.4,1.23117]
[1758990811334,1.0054,4010.5,4010.4,1.23117]
[1758990812644,0.4261,4010.5,4010.4,1.23117]
[1758990813934,0.7554,4010.5,4010.4,1.23117]
[1758990817946,0.2138,4010.5,4010.4,1.23117]
[1758990818154,4.00668483,4010.6,4010.5,1.36136]
[1758990818449,4.21898483,4010.6,4010.5,1.36136]
[1758990819045,0.65868,4010.4,4010.3,0.44858]
[1758990819244,0.8862,4010.4,4010.3,1.01348]
[1758990819443,0.6761,4010.4,4010.3,1.23118]
[1758990821551,3.09433483,4010.6,4010.4,0.4425]
[1758990821749,3.30813483,4010.6,4010.5,1.36136]
[1758990822151,3.84414961,4010.6,4010.5,1.36136]
[1758990824149,3.63034961,4010.6,4010.5,1.36136]
[1758990824559,3.84414961,4010.6,4010.5,1.36136]
[1758990824758,4.05644961,4010.6,4010.5,1.36136]
[1758990824953,4.71509961,4010.6,4010.5,0.4703]
[1758990825158,4.71509961,4010.6,4010.5,0.3401]
[1758990825756,4.96509961,4010.6,4010.5,0.3401]
[1758990827459,4.71509961,4010.6,4010.5,0.3401]
[1758990827654,4.96509961,4010.6,4010.5,0.3401]
[1758990827862,0.6362,4010.1,4010.0,0.4703]
[1758990828055,0.8848304,4010.1,4010.0,0.6951]
[1758990830866,0.8848304,4010.1,4010.0,0.9128]
[1758990832061,0.78601478,4010.1,4010.0,1.36142]
[1758990832262,0.53601478,4010.1,4010.0,1.36142]
[1758990832860,0.98462478,4010.1,4010.0,1.36142]
[1758990833156,0.53601478,4010.1,4010.0,1.36142]
[1758990833766,0.98462478,4010.1,4010.0,1.36142]
[1758990834767,0.53601478,4010.1,4010.0,1.36142]
[1758990835162,0.98573354,4010.3,4010.2,1.2069]
[1758990836066,0.53714354,4010.3,4010.2,1.2069]
[1758990837056,0.53714354,4010.3,4010.2,1.4569]
[1758990837865,0.53714354,4010.3,4010.2,1.65380929]
[1758990838164,0.53714354,4010.3,4010.2,9.6647]
[1758990838365,0.53714354,4010.3,4010.2,9.86530868]
[1758990838670,0.53714354,4010.3,4010.2,9.6647]
[1758990839764,0.53714354,4010.3,4010.2,9.86731815]
[1758990840465,0.53714354,4010.3,4010.2,9.6647]
[1758990841473,0.53714354,4010.3,4010.2,9.86821346]
[1758990842370,0.00232643,4010.9,4010.8,1.20683]
[1758990846170,3.2078,4011.6,4011.5,1.33635]
[1758990846672,3.2078,4011.6,4011.5,0.8879]
[1758990847170,3.21029123,4011.6,4011.5,0.8879]
[1758990848469,0.00249123,4011.6,4011.5,0.8879]
[1758990849569,0.00249123,4011.6,4011.5,1.33635]
[1758990849772,0.45093123,4011.6,4011.5,1.33635]
[1758990850372,0.45093123,4011.6,4011.0,0.1296]
[1758990850373,0.44849,4011.1,4011.0,0.1296]
[1758990851068,0.44849,4011.1,4011.0,0.4458]
[1758990851475,0.44855,4010.6,4010.5,0.903]
[1758990851867,0.44855,4010.6,4010.5,1.1291]
[1758990852979,0.44855,4010.6,4010.5,0.8791]
[1758990854377,0.982401,4010.6,4010.5,0.8791]
[1758990855978,0.533851,4010.6,4010.5,0.8791]
[1758990860790,0.533851,4010.6,4010.5,1.32766]
[1758990861882,0.533851,4010.6,4010.5,1.57866]
[1758990862891,3.6563,4011.1,4011.0,0.884]
[1758990863081,4.19040416,4011.1,4011.0,1.33251]
[1758990863476,3.74190416,4011.1,4011.0,1.33251]
[1758990865883,3.74190416,4011.1,4011.0,1.58351]
[1758990866282,0.53410416,4011.1,4011.0,1.58351]
[1758990868295,0.98260416,4011.1,4011.0,1.33251]
[1758990868593,4.19040416,4011.1,4011.0,0.87]
[1758990868799,3.74190416,4011.1,4011.0,1.31851]
[1758990868994,0.53410416,4011.1,4011.0,1.31851]
[1758990869496,0.53410416,4011.1,4011.0,1.56951]
[1758990876498,0.98259416,4011.1,4011.0,1.56951]
[1758990876698,5.98517663,4011.1,4011.0,0.316]
[1758990876887,0.44853,4010.8,4010.7,0.316]
[1758990877198,0.98263416,4010.8,4010.7,0.316]
[1758990877997,0.98263416,4010.8,4010.7,0.5314]
[1758990879500,0.53410416,4010.8,4010.7,0.5314]
[1758990879690,0.44851,4011.0,4010.9,0.5314]
[1758990879995,0.98264382,4011.0,4010.9,0.5314]
[1758990880693,0.53413382,4011.0,4010.9,0.7435]
[1758990882897,0.98264382,4011.0,4010.9,1.19202]
[1758990883800,0.53413382,4011.0,4010.9,1.19202]
[1758990884491,0.98264382,4011.0,4010.9,1.19202]
[1758990885097,0.53413382,4011.0,4010.9,1.19202]
[1758990885898,0.53413382,4011.0,4010.9,2.63213647]
[1758990891505,0.53413382,4011.0,4010.9,2.88313647]
[1758990893401,0.00249123,4011.6,4011.5,0.44845]
[1758990893602,0.00249123,4011.6,4011.5,1.34155]
[1758990898507,0.3321,4012.7,4011.8,0.66192]
[1758990898707,0.3321,4012.7,4011.8,2.90533647]
[1758990899009,0.44833,4012.6,4011.8,2.90533647]
[1758990899208,0.44833,4012.6,4011.8,3.10205651]
[1758990899409,1.77221647,4012.7,4011.8,2.90533647]
[1758990899613,3.21026524,4011.9,4011.8,2.90533647]
[1758990900216,3.21026524,4011.9,4011.8,3.10637237]
[1758990900416,3.21026524,4011.9,4011.8,2.90533647]
[1758990900617,0.00246524,4011.9,4011.8,2.90533647]
[1758990901208,3.2078,4012.5,4012.4,1.21415]
[1758990901412,3.2078,4012.5,4012.4,2.90526647]
[1758990901922,3.2078,4013.0,4012.9,0.7658]
[1758990902116,3.21038595,4013.0,4012.9,2.6567812]
[1758990903519,0.00258595,4013.0,4012.9,2.6567812]
[1758990911221,0.4233,4013.9,4013.8,0.97329]
[1758990911412,0.4233,4013.9,4013.8,1.18639]
[1758990912221,0.42611316,4013.9,4013.8,1.18639]
[1758990912930,0.21511316,4013.9,4013.8,1.18639]
[1758990916030,0.00281316,4013.9,4013.8,1.18639]
[1758990923542,1.18829316,4013.9,4013.8,2.17831647]
[1758990923840,1.18829316,4013.9,4013.8,2.62650647]
[1758990924139,0.42481316,4013.9,4013.8,2.62650647]
[1758990924326,0.53215096,4013.9,4013.8,2.62650647]
[1758990928634,0.98033096,4013.9,4013.8,2.62650647]
[1758990929841,0.98033096,4013.9,4013.8,2.17831647]
[1758990930642,1.71763096,4013.9,4013.8,2.17831647]
[1758990930830,1.40233096,4013.9,4013.8,2.17831647]
[1758990936547,0.98033096,4013.9,4013.8,2.62650647]
[1758990936948,0.53215096,4013.9,4013.8,2.62650647]
[1758990937646,0.98033096,4013.9,4013.8,2.62650647]
[1758990937842,0.98033096,4013.9,4013.8,2.17831647]
[1758990938047,1.19243096,4013.9,4013.8,2.17831647]
[1758990938247,1.19243096,4013.9,4013.8,2.62650647]
[1758990938449,0.53215096,4013.9,4013.8,2.62650647]
[1758990938747,0.98033096,4013.9,4013.8,1.18639]
[1758990939243,0.53215096,4013.9,4013.8,1.18639]
[1758990939446,0.98033096,4013.9,4013.8,1.18639]
[1758990944154,1.19243096,4013.9,4013.8,1.18639]
[1758990944541,1.19243096,4013.9,4013.8,0.7382]
[1758990945350,0.53215096,4013.9,4013.8,1.18639]
[1758990945550,0.98033096,4013.9,4013.8,1.18639]
[1758990946556,1.19243096,4013.9,4013.8,1.18639]
[1758990947555,1.19243096,4013.9,4013.8,0.7382]
[1758990947855,1.71763096,4013.9,4013.8,0.7382]
[1758990948155,1.71763096,4013.9,4013.8,1.18639]
[1758990948550,1.40233096,4013.9,4013.8,1.18639]
[1758990950259,0.87299316,4013.9,4013.8,1.18639]
[1758990950558,1.40541502,4013.9,4013.8,1.18639]
[1758990950759,1.72071502,4013.9,4013.8,1.18639]
[1758990951258,1.72071502,4013.9,4013.8,0.96889]
[1758990952158,1.72071502,4013.9,4013.8,1.18749]
[1758990954163,1.72071502,4013.9,4013.8,0.7393]
[1758990954753,0.44824,4013.4,4013.3,3.87274]
[1758990954965,1.30402186,4013.4,4013.3,4.43044]
[1758990955160,1.30402186,4013.4,4013.3,6.22193847]
[1758990955350,1.30402186,4013.4,4013.3,6.43573847]
[1758990956863,0.98242186,4013.4,4013.3,6.43573847]
[1758990957559,1.43066186,4013.4,4013.3,6.43573847]